[Event "FIDE World School-ch O-13 2025"]
[Site "Vrnjacka Banja"]
[Date "2025.03.22"]
[Round "3.1"]
[White "Yurasov, Matfey"]
[Black "Baturin-Vinogradov, Miroslav"]
[Result "1-0"]
[Annotator "TA"]
[ECO "A07"]
[WhiteElo "2271"]
[BlackElo "1912"]
[PlyCount "69"]
[EventDate "2025.03.19"]
[EventType "swiss"]
[EventCountry "SRB"]
[SourceTitle "playchess.com"]
[Source "ChessBase"]
[SourceQuality "1"]
[TimeControl "5400+30"]

{[%evp 9,69,2,15,14,18,16,16,23,26,3,32,37,46,53,56,27,34,41,58,46,36,0,0,0,0,0,0,0,10,0,20,0,69,60,81,68,94,92,104,58,158,178,191,167,211,214,261,184,273,264,259,265,1434,1474,1407,543,441,340,29978,29979,6203,6186]} 1. Nf3 {[%emt 0:00:30]} d5 {[%emt 0:03:28]} 2. g3 {[%emt 0:00:09]} Bg4 {[%emt 0:00:19]} 3. Bg2 {[%emt 0:00:04]} c6 {[%emt 0:00:19]} 4. O-O {[%emt 0:00:06]} Nd7 {[%emt 0:00:35]} 5. h3 {[%emt 0:00:07]} Bh5 {[%emt 0:00:10]} 6. d4 {[%emt 0:00:11][%cal Oc2c4] A07: Réti Opening: New York and Capablanca Systems.} Ngf6 {[%emt 0:01:12] [#]} 7. c4 $1 {[%emt 0:00:06]} e6 {[%emt 0:00:35]} 8. cxd5 {[%emt 0:00:41] The position is equal.} exd5 {[%emt 0:00:23]} 9. Ne5 {[%emt 0:00:05]} Bg6 {[%emt 0:04:12] 9...Bg6 has become a bit dusty these days.} 10. Nc3 {[%emt 0:00:41]} Be7 {[%emt 0:02:20]} 11. f4 {[%emt 0:02:50]} Be4 {[%emt 0:02:42]} 12. Nxe4 {[%emt 0:05:06]} Nxe4 {[%emt 0:00:45]} 13. Bxe4 {[%emt 0:00:25]} dxe4 {[%emt 0:02:18]} 14. Qb3 {[%emt 0:00:04][%csl Ge5,LRb7,LRf7][%cal Rb3f7] [#]} Nxe5 {[%emt 0:03:06] A sharp opening} 15. fxe5 {[%emt 0:00:22]} O-O {[%emt 0:05:33]} (15... Qxd4+ $2 16. Be3 Qd5 17. Qxb7 $18) 16. Be3 {[%emt 0:00:28]} Qd5 {[%emt 0:11:25]} 17. Qxb7 {[%emt 0:10:57]} (17. Qxd5 {simplifies} cxd5 18. Rac1 Rfc8 19. g4) 17... Qe6 {[%emt 0:00:20][%cal Oa8b8]} 18. Rac1 $146 {[%emt 0:00:06]} (18. Kg2 Rfb8 19. Qa6 Rxb2 20. Rf2 Rc2 21. Qb7 Rf8 22. Rc1 Rxc1 23. Bxc1 a5 24. Qa7 {0-1 Osmak,I (2420)-Antova,G (2275) Olympiad Women-44 2022 (4.4)}) 18... Qxh3 {[%emt 0:03:20]} 19. Bf4 $36 {[%emt 0:00:07][%mdl 2048] Black is under pressure. Active counter play!} Bg5 {[%emt 0:01:35] ...Bxf4 is the strong threat.} 20. Qb3 {[%emt 0:06:49]} (20. Bxg5 $2 Qxg3+ 21. Kh1 Qxg5 $19) (20. Rc3 $5 Bxf4 21. Rxf4 $14) 20... Bxf4 {[%emt 0:10:58]} (20... Rab8 $11 21. Qc3 Rxb2 22. Qxb2 Bxf4 23. gxf4 Qg3+ 24. Kh1 Qh3+ 25. Kg1) 21. Rxf4 $14 {[%emt 0:00:06]} Rab8 {[%emt 0:01:12]} 22. Qc3 {[%emt 0:00:10][%cal Ob2b3]} Qh5 {[%emt 0:09:06]} ({Not} 22... Rxb2 $2 23. Rh4 $18) 23. Rxe4 {[%emt 0:01:05][%cal Ob2b3]} f5 {[%emt 0:01:01]} 24. Rf4 {[%emt 0:15:17]} (24. Qc4+ $16 Kh8 25. Rh4) 24... g5 {[%emt 0:03:46]} (24... Qxe2 $14 25. Rc2 (25. Qxc6 Qe3+ 26. Kg2 Qd2+ 27. Kh3 Rxb2 $11) 25... Qd1+ 26. Kg2 g5) 25. Rf3 $16 {[%emt 0:00:19]} f4 {[%emt 0:06:00]} 26. Qxc6 {[%emt 0:03:35]} fxg3 {[%emt 0:07:17]} 27. Rxg3 {[%emt 0:00:33]} Rxb2 {[%emt 0:01:54][%cal Oh5h4]} 28. Qg2 {[%emt 0:00:16]} Kh8 {[%emt 0:05:29]} (28... h6 {keeps fighting.}) 29. Rf1 $18 {[%emt 0:04:28]} (29. Rxg5 Qxe2 30. Qxe2 Rxe2 $18) 29... Rxf1+ {[%emt 0:04:34]} 30. Qxf1 {[%emt 0:00:06] KQR-KQR. White is a pawn up.} Kg8 {[%emt 0:00:19] Prevents Qf8+.} (30... h6 31. Qf6+ Kg8) 31. Qf5 {[%emt 0:00:13]} h6 {[%emt 0:00:27]} 32. Rc3 {[%emt 0:00:53]} (32. Qc8+ $142 Kg7 33. Qd7+ Qf7 34. e6 Rb1+ 35. Kg2 Qxd7 36. exd7) 32... Qf7 {[%emt 0:02:21]} 33. Qe4 {[%emt 0:02:34] Strongly threatening e6.} Rxa2 $2 {[%emt 0:02:49]} (33... Kg7 $18 34. Rc6 Rb6) 34. Rf3 {[%emt 0:00:29]} Ra1+ {[%emt 0:00:19]} 35. Kg2 {[%emt 0:00:01] Weighted Error Value: White=0.36/Black=0.44  Mistake:       	White=1     	Black=5      Inaccurate:     	White=1     	Black=2      OK:         	White=14    	Black=9      Best:        	White=2     	---} 1-0

[Event "FIDE World School-ch O-13 2025"]
[Site "Vrnjacka Banja"]
[Date "2025.03.22"]
[Round "3.2"]
[White "Zharas, Aldiyar"]
[Black "Wijerathna, Vinuka Dihain"]
[Result "1/2-1/2"]
[Annotator "NA RC"]
[ECO "C22"]
[WhiteElo "1924"]
[BlackElo "2117"]
[PlyCount "125"]
[EventDate "2025.03.19"]
[EventType "swiss"]
[EventCountry "SRB"]
[SourceTitle "playchess.com"]
[Source "ChessBase"]
[SourceQuality "1"]
[TimeControl "5400+30"]

1. e4 {[%emt 0:00:06]} e5 {[%emt 0:00:08]} 2. d4 {[%emt 0:00:29]} exd4 {[%emt 0:00:07]} 3. Qxd4 {[%emt 0:00:07]} Nc6 {[%emt 0:00:02]} 4. Qe3 {[%emt 0:00:07]} Nf6 {[%emt 0:00:04]} 5. Nc3 {[%emt 0:00:09]} Bb4 {[%emt 0:00:05]} 6. Bd2 {[%emt 0:00:05]} O-O {[%emt 0:00:05]} 7. O-O-O {[%emt 0:00:05]} Re8 {[%emt 0:00:02]} 8. Bc4 {[%emt 0:00:09]} d6 {[%emt 0:12:31]} 9. Nf3 {[%emt 0:00:06]} Be6 {[%emt 0:05:54]} 10. Bxe6 {[%emt 0:01:19]} Rxe6 {[%emt 0:00:09]} 11. Ng5 {[%emt 0:00:03]} Re8 {[%emt 0:00:55]} 12. a3 {[%emt 0:00:06]} Bxc3 {[%emt 0:09:08]} 13. Bxc3 {[%emt 0:00:10]} h6 {[%emt 0:00:12]} 14. h4 {[%emt 0:00:05]} Nd7 {[%emt 0:19:58]} 15. f4 {[%emt 0:13:06]} Qe7 {[%emt 0:03:28]} 16. Rhe1 {[%emt 0:37:01]} Rad8 {[%emt 0:09:23]} 17. Nf3 {[%emt 0:06:32]} Nc5 {[%emt 0:08:04]} 18. e5 {[%emt 0:03:54]} dxe5 {[%emt 0:00:30]} 19. fxe5 {[%emt 0:01:54]} Ne6 {[%emt 0:00:45]} 20. g4 {[%emt 0:01:29]} Rxd1+ {[%emt 0:00:51]} 21. Rxd1 {[%emt 0:00:11]} Rd8 {[%emt 0:00:04]} 22. Rxd8+ {[%emt 0:01:22]} Qxd8 {[%emt 0:00:05]} 23. Qe4 {[%emt 0:01:31]} Qd7 {[%emt 0:02:45]} 24. b4 {[%emt 0:02:52]} a6 {[%emt 0:03:02]} 25. Kb2 {[%emt 0:04:42]} b5 {[%emt 0:04:29]} 26. a4 {[%emt 0:07:07]} Ne7 {[%emt 0:01:40]} 27. Qa8+ {[%emt 0:05:44]} Qc8 {[%emt 0:00:01]} 28. Qxc8+ {[%emt 0:00:29]} Nxc8 {[%emt 0:00:06]} 29. axb5 {[%emt 0:02:01]} axb5 {[%emt 0:00:05]} 30. Bd4 {[%emt 0:00:46]} Ne7 {[%emt 0:00:35]} 31. Kb3 {[%emt 0:02:05]} Ng6 {[%emt 0:00:41]} 32. Be3 {[%emt 0:00:53]} c6 {[%emt 0:00:59]} 33. Kc3 {[%emt 0:01:37]} Ne7 {[%emt 0:00:34]} 34. Kd3 {[%emt 0:00:38]} Nd5 {[%emt 0:00:10]} 35. Bd2 {[%emt 0:01:11]} Nd8 {[%emt 0:07:11]} 36. c4 {[%emt 0:03:42]} bxc4+ {[%emt 0:01:18]} 37. Kxc4 {[%emt 0:00:02]} Ne6 {[%emt 0:00:05]} 38. Nd4 {[%emt 0:03:53]} Nb6+ {[%emt 0:00:03]} 39. Kd3 {[%emt 0:00:06]} Nxd4 {[%emt 0:00:12]} 40. Kxd4 {[%emt 0:00:01]} Nd7 {[%emt 0:00:07]} 41. Bc3 {[%emt 0:00:50]} Kf8 {[%emt 0:00:47]} 42. Kc4 {[%emt 0:01:28]} Ke7 {[%emt 0:00:12]} 43. Kd4 {[%emt 0:01:08]} Ke6 {[%emt 0:01:00]} 44. Ke4 {[%emt 0:00:03]} Nb6 {[%emt 0:02:20]} 45. Kd4 {[%emt 0:00:10]} Nd5 {[%emt 0:00:43]} 46. Bd2 {[%emt 0:00:08]} Ne7 {[%emt 0:00:46]} 47. h5 {[%emt 0:01:05]} Nd5 {[%emt 0:04:09]} 48. Be1 {[%emt 0:01:09]} Nc7 {[%emt 0:05:09]} 49. Kc5 {[%emt 0:01:04]} Kd7 {[%emt 0:00:19]} 50. Bc3 {[%emt 0:00:00]} Ne6+ {[%emt 0:01:09]} 51. Kb6 {[%emt 0:00:01]} Nf4 {[%emt 0:00:51]} 52. Bd4 {[%emt 0:00:54]} Nd5+ {[%emt 0:00:26]} 53. Kc5 {[%emt 0:00:09]} Nf4 {[%emt 0:01:04]} 54. Kb6 {[%emt 0:00:51]} Nd5+ {[%emt 0:01:09]} 55. Kc5 {[%emt 0:00:06]} Nc7 {[%emt 0:00:13]} 56. Bc3 {[%emt 0:00:33]} Ne6+ {[%emt 0:00:16]} 57. Kb6 {[%emt 0:00:05]} Nf4 {[%emt 0:00:27]} 58. e6+ {[%emt 0:01:17]} Nxe6 {[%emt 0:00:34]} 59. g5 {[%emt 0:00:16]} f6 {[%emt 0:01:20]} 60. gxf6 {[%emt 0:00:32]} gxf6 {[%emt 0:00:19]} 61. Bxf6 {[%emt 0:00:12]} Nf4 {[%emt 0:00:12]} 62. Bg7 {[%emt 0:00:11]} Nxh5 {[%emt 0:00:04]} 63. Bxh6 {[%emt 0:00:04]} 1/2-1/2

[Event "FIDE World School-ch O-13 2025"]
[Site "Vrnjacka Banja"]
[Date "2025.03.22"]
[Round "3.3"]
[White "Eshwar Veerappan Aiyappan"]
[Black "Rusu, Lucas"]
[Result "1/2-1/2"]
[Annotator "NA RC"]
[ECO "B22"]
[WhiteElo "1765"]
[BlackElo "2049"]
[PlyCount "102"]
[EventDate "2025.03.19"]
[EventType "swiss"]
[EventCountry "SRB"]
[SourceTitle "playchess.com"]
[Source "ChessBase"]
[SourceQuality "1"]
[TimeControl "5400+30"]

1. e4 {[%emt 0:00:13]} c5 {[%emt 0:00:05]} 2. Nf3 {[%emt 0:00:10]} e6 {[%emt 0:00:05]} 3. c3 {[%emt 0:00:33]} Nf6 {[%emt 0:00:12]} 4. e5 {[%emt 0:00:48]} Nd5 {[%emt 0:00:08]} 5. Bc4 {[%emt 0:00:24]} d6 {[%emt 0:03:26]} 6. d4 {[%emt 0:03:16]} Nc6 {[%emt 0:02:47]} 7. O-O {[%emt 0:01:24]} Be7 {[%emt 0:03:42]} 8. exd6 {[%emt 0:05:53]} Qxd6 {[%emt 0:01:46]} 9. dxc5 {[%emt 0:03:01]} Qxc5 {[%emt 0:00:01]} 10. Bxd5 {[%emt 0:00:33]} Qxd5 {[%emt 0:07:15]} 11. Qxd5 {[%emt 0:02:24]} exd5 {[%emt 0:00:23]} 12. Rd1 {[%emt 0:01:14]} Be6 {[%emt 0:03:53]} 13. Be3 {[%emt 0:00:48]} O-O {[%emt 0:03:52]} 14. Nbd2 $11 {[%emt 0:00:46]} Rfd8 {[%emt 0:03:28]} 15. Nb3 {[%emt 0:00:26]} Bg4 {[%emt 0:06:57]} 16. Nbd4 {[%emt 0:03:52]} Bf6 {[%emt 0:04:34]} 17. Rd3 {[%emt 0:12:54]} Na5 {[%emt 0:11:22]} 18. Re1 {[%emt 0:12:59]} Nc4 {[%emt 0:02:48]} 19. Bc1 {[%emt 0:02:18]} Re8 {[%emt 0:02:20]} 20. Kf1 {[%emt 0:12:42]} Rxe1+ {[%emt 0:11:51]} 21. Nxe1 {[%emt 0:01:30]} Re8 {[%emt 0:01:19]} 22. h3 {[%emt 0:05:58]} Bd7 {[%emt 0:02:28]} 23. Nec2 {[%emt 0:01:08]} Rc8 {[%emt 0:12:55]} 24. Ne3 {[%emt 0:01:58]} Nxe3+ {[%emt 0:00:33]} 25. Bxe3 {[%emt 0:00:24]} b6 {[%emt 0:00:12]} 26. Ne2 {[%emt 0:01:24]} Bc6 {[%emt 0:00:15]} 27. Ke1 {[%emt 0:01:12]} Be5 {[%emt 0:03:03]} 28. Bd4 {[%emt 0:03:28]} Bd6 {[%emt 0:01:03]} 29. Re3 {[%emt 0:01:55]} f6 {[%emt 0:00:20]} 30. h4 {[%emt 0:01:32]} Kf7 {[%emt 0:00:18]} 31. h5 {[%emt 0:05:57]} h6 {[%emt 0:00:00]} 32. f3 {[%emt 0:02:18]} Bd7 {[%emt 0:00:17]} 33. Kf2 {[%emt 0:00:27]} Rd8 {[%emt 0:02:25]} 34. Kf1 {[%emt 0:01:37]} Bb5 {[%emt 0:00:11]} 35. Kf2 {[%emt 0:00:17]} Bd7 {[%emt 0:00:05]} 36. Kf1 {[%emt 0:00:08]} Bf5 {[%emt 0:00:28]} 37. Kf2 {[%emt 0:00:12]} Bb1 {[%emt 0:00:15]} 38. a3 {[%emt 0:00:25]} Bc2 {[%emt 0:00:08]} 39. Kf1 {[%emt 0:00:35]} Bb3 {[%emt 0:00:16]} 40. Kf2 {[%emt 0:00:07]} Bc4 {[%emt 0:00:01]} 41. Ke1 {[%emt 0:00:25]} Rg8 {[%emt 0:00:17]} 42. Kf2 {[%emt 0:00:54]} Rb8 {[%emt 0:00:31]} 43. Ng3 {[%emt 0:01:18]} Bb5 {[%emt 0:01:00]} 44. Nf5 {[%emt 0:00:33]} Bf8 {[%emt 0:00:07]} 45. Re1 {[%emt 0:00:42]} Bd7 {[%emt 0:00:10]} 46. Ne3 {[%emt 0:01:34]} Bc6 {[%emt 0:00:06]} 47. Nf5 {[%emt 0:00:07]} Bd7 {[%emt 0:00:05]} 48. Ne3 {[%emt 0:00:08]} Bc6 {[%emt 0:00:08]} 49. Nf5 {[%emt 0:00:05]} Bd7 {[%emt 0:03:19]} 50. Ne3 {[%emt 0:00:09]} Bc6 {[%emt 0:01:33]} 51. Nf5 {[%emt 0:00:20]} Bd7 {[%emt 0:00:58]} 1/2-1/2

[Event "FIDE World School-ch O-13 2025"]
[Site "Vrnjacka Banja"]
[Date "2025.03.22"]
[Round "3.4"]
[White "Sukhanov, Nikita"]
[Black "Petroff, Vlad"]
[Result "1/2-1/2"]
[Annotator "NA RC"]
[ECO "B13"]
[WhiteElo "1764"]
[BlackElo "2030"]
[PlyCount "125"]
[EventDate "2025.03.19"]
[EventType "swiss"]
[EventCountry "SRB"]
[SourceTitle "playchess.com"]
[Source "ChessBase"]
[SourceQuality "1"]
[TimeControl "5400+30"]

1. e4 {[%emt 0:00:54]} c6 {[%emt 0:00:20]} 2. d4 {[%emt 0:01:11]} d5 {[%emt 0:00:29]} 3. exd5 {[%emt 0:00:13]} cxd5 {[%emt 0:00:08]} 4. Bd3 {[%emt 0:00:18]} Nc6 {[%emt 0:00:29]} 5. c3 {[%emt 0:00:31]} Qc7 {[%emt 0:00:46]} 6. Ne2 {[%emt 0:00:56]} Bg4 {[%emt 0:01:14]} 7. O-O {[%emt 0:00:31]} e6 {[%emt 0:00:54]} 8. Qe1 {[%emt 0:00:38]} Bd6 {[%emt 0:04:19]} 9. f3 {[%emt 0:01:15]} Bh5 {[%emt 0:03:46]} 10. Qh4 {[%emt 0:03:05]} Bg6 {[%emt 0:04:33]} 11. Bxg6 {[%emt 0:00:21]} fxg6 {[%emt 0:00:26]} 12. Bf4 {[%emt 0:04:18]} Nge7 {[%emt 0:03:22]} 13. Bxd6 {[%emt 0:05:09]} Qxd6 {[%emt 0:00:15]} 14. Qf4 {[%emt 0:00:57]} Qd7 {[%emt 0:01:24]} 15. Ng3 $14 {[%emt 0:04:51]} O-O-O {[%emt 0:08:22]} 16. a4 {[%emt 0:03:15]} Nf5 {[%emt 0:01:12]} 17. a5 {[%emt 0:02:29]} a6 {[%emt 0:02:01]} 18. Nd2 {[%emt 0:04:25]} h6 {[%emt 0:01:40]} 19. Nxf5 {[%emt 0:03:01]} exf5 {[%emt 0:00:28]} 20. Nb3 {[%emt 0:00:26]} g5 {[%emt 0:02:19]} 21. Qd2 {[%emt 0:00:48]} Rhe8 {[%emt 0:06:25]} 22. Nc5 {[%emt 0:01:30]} Qf7 {[%emt 0:01:43]} 23. b4 {[%emt 0:01:11]} Na7 {[%emt 0:03:35]} 24. Nd3 {[%emt 0:06:26]} f4 {[%emt 0:03:50]} 25. Ne5 {[%emt 0:00:57]} Qc7 {[%emt 0:01:10]} 26. Rac1 {[%emt 0:01:26]} Kb8 {[%emt 0:00:52]} 27. Rfd1 {[%emt 0:01:53]} Nb5 {[%emt 0:01:58]} 28. Qd3 {[%emt 0:04:11]} Nd6 {[%emt 0:06:43]} 29. Re1 {[%emt 0:02:27]} Rc8 {[%emt 0:01:51]} 30. Re2 {[%emt 0:02:09]} Red8 {[%emt 0:08:21]} 31. Ng6 {[%emt 0:01:21]} Rd7 {[%emt 0:06:37]} 32. Ne5 {[%emt 0:02:04]} Re7 {[%emt 0:01:00]} 33. Rce1 {[%emt 0:02:21]} Rce8 {[%emt 0:00:26]} 34. h3 {[%emt 0:01:48]} Nb5 {[%emt 0:02:29]} 35. Rc1 {[%emt 0:01:17]} Nxd4 {[%emt 0:01:23]} 36. Qxd4 {[%emt 0:01:56]} Rxe5 {[%emt 0:00:15]} 37. Rxe5 {[%emt 0:00:32]} Qxe5 {[%emt 0:00:43]} 38. Rd1 {[%emt 0:00:46]} Qxd4+ {[%emt 0:01:57]} 39. Rxd4 {[%emt 0:00:05]} Re3 {[%emt 0:00:44]} 40. Rxd5 {[%emt 0:00:07]} Rxc3 {[%emt 0:00:03]} 41. b5 {[%emt 0:01:00]} axb5 {[%emt 0:00:51]} 42. Rxb5 {[%emt 0:00:04]} Ka7 {[%emt 0:00:06]} 43. Rb6 {[%emt 0:00:22]} Rc5 {[%emt 0:00:41]} 44. Rg6 {[%emt 0:00:06]} Rxa5 {[%emt 0:00:25]} 45. Rxg7 {[%emt 0:00:04]} Rc5 {[%emt 0:00:08]} 46. Kf2 {[%emt 0:00:08]} Rc6 {[%emt 0:00:11]} 47. h4 {[%emt 0:00:17]} gxh4 {[%emt 0:01:32]} 48. Rg4 {[%emt 0:01:51]} Rf6 {[%emt 0:01:31]} 49. Rxh4 {[%emt 0:00:13]} b5 {[%emt 0:00:38]} 50. Ke2 {[%emt 0:00:12]} Kb6 {[%emt 0:00:35]} 51. Kd3 {[%emt 0:00:22]} Ka5 {[%emt 0:02:36]} 52. Kc2 {[%emt 0:00:26]} Rg6 {[%emt 0:01:34]} 53. Rxf4 {[%emt 0:00:30]} Rxg2+ {[%emt 0:00:02]} 54. Kb3 {[%emt 0:00:15]} Re2 {[%emt 0:01:50]} 55. Rh4 {[%emt 0:00:57]} Re3+ {[%emt 0:03:07]} 56. Kb2 {[%emt 0:00:15]} Rxf3 {[%emt 0:00:59]} 57. Rxh6 {[%emt 0:00:05]} Ka4 {[%emt 0:00:12]} 58. Rh2 {[%emt 0:00:33]} b4 {[%emt 0:00:36]} 59. Rg2 {[%emt 0:00:19]} Rb3+ {[%emt 0:01:48]} 60. Ka2 {[%emt 0:00:10]} Rh3 {[%emt 0:00:13]} 61. Kb2 {[%emt 0:00:18]} Rh1 {[%emt 0:00:17]} 62. Rf2 {[%emt 0:00:39]} Re1 {[%emt 0:00:30]} 63. Rh2 {[%emt 0:02:15]} 1/2-1/2

[Event "FIDE World School-ch O-13 2025"]
[Site "Vrnjacka Banja"]
[Date "2025.03.22"]
[Round "3.5"]
[White "Obidov, Biloliddin"]
[Black "Vyas, Miransh Purven"]
[Result "1-0"]
[Annotator "NA RC"]
[ECO "B11"]
[WhiteElo "2020"]
[BlackElo "1750"]
[PlyCount "73"]
[EventDate "2025.03.19"]
[EventType "swiss"]
[EventCountry "SRB"]
[SourceTitle "playchess.com"]
[Source "ChessBase"]
[SourceQuality "1"]
[TimeControl "5400+30"]

1. e4 {[%emt 0:00:30]} c6 {[%emt 0:00:30]} 2. Nf3 {[%emt 0:00:30]} d5 {[%emt 0:00:00]} 3. Nc3 {[%emt 0:02:17]} dxe4 {[%emt 0:00:28]} 4. Nxe4 {[%emt 0:00:30]} Nf6 {[%emt 0:00:23]} 5. Qe2 {[%emt 0:00:00]} Nxe4 {[%emt 0:00:09]} 6. Qxe4 {[%emt 1:29:43]} Be6 7. c4 {[%emt 0:00:00]} Nd7 {[%emt 0:02:20]} 8. d4 {[%emt 0:00:00]} Nf6 {[%emt 0:00:16]} 9. Qc2 {[%emt 0:00:00]} Bg4 {[%emt 0:04:43]} 10. Be3 {[%emt 0:00:00]} Bxf3 {[%emt 0:03:19]} 11. gxf3 {[%emt 0:00:00]} e6 {[%emt 0:13:06]} 12. O-O-O {[%emt 0:00:00]} Qa5 $11 {[%emt 0:02:00]} 13. Kb1 {[%emt 0:00:00]} O-O-O {[%emt 0:03:20]} 14. Rg1 {[%emt 0:00:00]} h6 {[%emt 0:06:15]} 15. Bf4 {[%emt 0:00:00]} Nh5 {[%emt 0:13:55]} 16. Be3 {[%emt 0:00:00]} g6 {[%emt 0:09:44]} 17. d5 {[%emt 0:00:00]} exd5 {[%emt 0:09:29]} 18. cxd5 {[%emt 0:00:00]} c5 {[%emt 0:00:45]} 19. Rg4 {[%emt 0:00:00]} Nf6 {[%emt 0:08:33]} 20. Rf4 {[%emt 0:00:00]} Nxd5 {[%emt 0:08:02]} 21. Rxf7 {[%emt 0:00:00]} Qb6 {[%emt 0:02:48]} 22. Bd4 {[%emt 0:00:00]} Qe6 {[%emt 0:04:51]} 23. Bh3 {[%emt 0:00:00]} Qxh3 {[%emt 0:00:49]} 24. Bxh8 {[%emt 0:00:00]} Qe6 {[%emt 0:01:10]} 25. Rxf8 {[%emt 0:00:00]} Rxf8 {[%emt 0:02:24]} 26. Qxc5+ {[%emt 0:00:00]} Kd7 {[%emt 0:00:13]} 27. Rxd5+ {[%emt 0:00:00]} Qxd5 {[%emt 0:00:08]} 28. Qxd5+ {[%emt 0:00:00]} Ke7 {[%emt 0:00:06]} 29. Be5 {[%emt 0:00:00]} Rf5 {[%emt 0:00:08]} 30. Qd6+ {[%emt 0:00:00]} Ke8 {[%emt 0:00:08]} 31. Qxg6+ {[%emt 0:00:00]} Ke7 {[%emt 0:00:04]} 32. Qxf5 {[%emt 0:00:00]} b5 {[%emt 0:00:03]} 33. Qf6+ {[%emt 0:00:00]} Kd7 {[%emt 0:00:04]} 34. Qd6+ {[%emt 0:00:00]} Ke8 {[%emt 0:00:03]} 35. Qc7 {[%emt 0:00:00]} a5 {[%emt 0:00:04]} 36. Bd6 {[%emt 0:00:00]} b4 {[%emt 0:00:04]} 37. Qe7# {[%emt 0:00:00]} 1-0

[Event "FIDE World School-ch O-13 2025"]
[Site "Vrnjacka Banja"]
[Date "2025.03.22"]
[Round "3.6"]
[White "Lee, Tsuen Jin Aiesec"]
[Black "Kudrin, Ivan"]
[Result "1/2-1/2"]
[Annotator "NA RC"]
[ECO "C00"]
[WhiteElo "1693"]
[BlackElo "1977"]
[PlyCount "87"]
[EventDate "2025.03.19"]
[EventType "swiss"]
[EventCountry "SRB"]
[SourceTitle "playchess.com"]
[Source "ChessBase"]
[SourceQuality "1"]
[TimeControl "5400+30"]

1. e4 {[%emt 0:00:02]} c5 {[%emt 0:00:31]} 2. Nf3 {[%emt 0:00:05]} e6 {[%emt 0:00:54]} 3. d3 {[%emt 0:00:05]} Nc6 {[%emt 0:00:44]} 4. g3 {[%emt 0:00:07]} d5 {[%emt 0:07:26]} 5. Nbd2 {[%emt 0:00:06]} Nf6 {[%emt 0:00:41]} 6. Bg2 {[%emt 0:00:05]} Be7 {[%emt 0:00:51]} 7. O-O {[%emt 0:00:07]} Qc7 {[%emt 0:00:34]} 8. Re1 {[%emt 0:00:19]} O-O {[%emt 0:06:54]} 9. c3 {[%emt 0:02:37]} Rd8 {[%emt 0:10:12]} 10. e5 {[%emt 0:00:37]} Nd7 {[%emt 0:00:10]} 11. Qe2 {[%emt 0:00:25]} b5 {[%emt 0:00:43]} 12. a4 {[%emt 0:01:06]} b4 {[%emt 0:01:55]} 13. c4 {[%emt 0:00:14]} dxc4 {[%emt 0:07:30]} 14. dxc4 {[%emt 0:02:32]} Bb7 $15 {[%emt 0:00:11]} 15. Nb3 {[%emt 0:05:28]} Na5 {[%emt 0:07:16]} 16. Nxa5 {[%emt 0:00:13]} Qxa5 {[%emt 0:00:05]} 17. b3 {[%emt 0:00:05]} Qc7 {[%emt 0:00:57]} 18. Bf4 {[%emt 0:00:15]} Nb8 {[%emt 0:02:45]} 19. Ng5 {[%emt 0:10:14]} Bxg2 {[%emt 0:11:33]} 20. Kxg2 {[%emt 0:00:18]} Nc6 {[%emt 0:02:39]} 21. Qh5 {[%emt 0:00:24]} Bxg5 {[%emt 0:00:11]} 22. Bxg5 {[%emt 0:00:10]} Rd3 {[%emt 0:02:17]} 23. Re4 {[%emt 0:20:05]} Nxe5 {[%emt 0:14:11]} 24. Bf4 {[%emt 0:01:32]} f6 {[%emt 0:00:06]} 25. Bxe5 {[%emt 0:00:27]} fxe5 {[%emt 0:00:40]} 26. Rxe5 {[%emt 0:01:23]} Rxb3 {[%emt 0:05:22]} 27. Rxe6 {[%emt 0:00:52]} Qb7+ {[%emt 0:02:07]} 28. Kg1 {[%emt 0:01:18]} Qf7 {[%emt 0:00:09]} 29. Qxf7+ {[%emt 0:01:36]} Kxf7 {[%emt 0:00:24]} 30. Rc6 {[%emt 0:00:04]} Rd8 {[%emt 0:00:46]} 31. Rxc5 {[%emt 0:00:12]} Ra3 {[%emt 0:00:32]} 32. Rb1 {[%emt 0:01:44]} Rxa4 {[%emt 0:00:06]} 33. Rc7+ {[%emt 0:00:11]} Kf6 {[%emt 0:01:25]} 34. Rb7 {[%emt 0:00:14]} a5 {[%emt 0:03:43]} 35. c5 {[%emt 0:00:52]} Rc8 {[%emt 0:01:33]} 36. Rc1 {[%emt 0:00:57]} Ra3 {[%emt 0:00:07]} 37. Rb5 {[%emt 0:01:48]} Rc3 {[%emt 0:00:37]} 38. Ra1 {[%emt 0:00:04]} R3xc5 {[%emt 0:00:43]} 39. Raxa5 {[%emt 0:00:29]} Rxb5 {[%emt 0:00:37]} 40. Rxb5 {[%emt 0:00:03]} Rc1+ {[%emt 0:00:05]} 41. Kg2 {[%emt 0:00:04]} Rb1 {[%emt 0:00:03]} 42. Kf3 {[%emt 0:00:27]} b3 {[%emt 0:00:41]} 43. h3 {[%emt 0:00:42]} b2 {[%emt 0:00:08]} 44. h4 {[%emt 0:51:52]} 1/2-1/2

[Event "FIDE World School-ch O-13 2025"]
[Site "Vrnjacka Banja"]
[Date "2025.03.22"]
[Round "3.7"]
[White "Sakotic, Nikola"]
[Black "Rana, Oliver"]
[Result "1/2-1/2"]
[Annotator "NA RC"]
[ECO "E07"]
[WhiteElo "2039"]
[BlackElo "1808"]
[PlyCount "35"]
[EventDate "2025.03.19"]
[EventType "swiss"]
[EventCountry "SRB"]
[SourceTitle "playchess.com"]
[Source "ChessBase"]
[SourceQuality "1"]
[TimeControl "5400+30"]

1. Nf3 {[%emt 0:00:30]} Nf6 {[%emt 0:00:30]} 2. c4 {[%emt 0:00:30]} c6 {[%emt 0:00:30]} 3. d4 {[%emt 0:00:30]} d5 {[%emt 0:00:30]} 4. Nc3 {[%emt 0:00:30]} e6 {[%emt 0:00:23]} 5. Qb3 {[%emt 0:00:00]} Be7 {[%emt 0:00:51]} 6. g3 {[%emt 0:00:00]} O-O {[%emt 0:00:22]} 7. Bg2 {[%emt 0:00:00]} b6 {[%emt 0:01:17]} 8. O-O {[%emt 0:00:00]} Nbd7 {[%emt 0:00:33]} 9. Rd1 {[%emt 1:33:00]} Bb7 {[%emt 0:05:04]} 10. Ne5 {[%emt 0:00:00]} Qc7 {[%emt 0:07:11]} 11. Nd3 {[%emt 0:00:00]} c5 {[%emt 0:01:32]} 12. Bf4 $11 {[%emt 0:00:00]} Qc8 {[%emt 0:00:40]} 13. dxc5 {[%emt 0:00:00]} dxc4 {[%emt 0:00:38]} 14. Bxb7 {[%emt 0:00:00]} Qxb7 {[%emt 0:00:11]} 15. Qxc4 {[%emt 0:00:00]} Nxc5 {[%emt 0:00:20]} 16. Nxc5 {[%emt 0:00:00]} Bxc5 {[%emt 0:00:27]} 17. b4 {[%emt 0:00:00]} Be7 {[%emt 0:01:01]} 18. Rac1 {[%emt 0:00:00]} 1/2-1/2